bitfinex/quotes_BTCUSD_20240613
["timestamp","ask_amount","ask_price","bid_price","bid_amount"]
[1718288126160,0.16650861,67433.0,67429.0,0.17831993]
[1718288126369,0.09434865,67431.0,67429.0,0.17831993]
[1718288126571,0.09434865,67431.0,67429.0,0.16731993]
[1718288126775,0.09434865,67431.0,67429.0,0.17131993]
[1718288126998,0.09434865,67437.0,67429.0,0.18131993]
[1718288127409,0.09434865,67437.0,67429.0,0.17131993]
[1718288127615,0.09434865,67438.0,67429.0,0.17131993]
[1718288127849,0.09434865,67435.0,67429.0,0.18131993]
[1718288128061,0.05,67440.0,67429.0,0.18131993]
[1718288128485,0.09434865,67438.0,67429.0,0.16731993]
[1718288128931,0.09434865,67438.0,67429.0,0.17131993]
[1718288129167,0.09434865,67437.0,67429.0,0.17131993]
[1718288129430,0.05,67440.0,67429.0,0.16731993]
[1718288129431,0.09434865,67430.0,67429.0,0.16731993]
[1718288129840,0.09434865,67433.0,67429.0,0.17131993]
[1718288130056,0.09434865,67432.0,67429.0,0.17731993]
[1718288130480,0.09434865,67432.0,67429.0,0.16731993]
[1718288130960,0.02,67433.0,67429.0,0.16731993]
[1718288130961,0.09434865,67439.0,67429.0,0.17726833]
[1718288131176,0.14434865,67440.0,67430.0,0.14949462]
[1718288131400,0.14434865,67440.0,67431.0,0.16731993]
[1718288131401,0.09434865,67437.0,67431.0,0.16731993]
[1718288131612,0.09434865,67437.0,67432.0,0.001886]
[1718288131827,0.001,67437.0,67433.0,0.14431993]
[1718288132061,0.001,67437.0,67435.0,0.0887]
[1718288132283,0.00943801,67450.0,67443.0,0.148271]
[1718288132519,0.00943801,67450.0,67446.0,0.0919]
[1718288132741,0.00943801,67450.0,67449.0,0.32786]
[1718288132971,0.00943801,67450.0,67449.0,0.49517993]
[1718288133413,0.00943801,67450.0,67449.0,0.58697993]
[1718288133637,0.00943801,67450.0,67449.0,0.60485969]
[1718288134063,0.00943801,67450.0,67449.0,0.42525969]
[1718288134256,0.00943801,67450.0,67449.0,0.27699969]
[1718288134544,0.00943801,67450.0,67449.0,0.40737993]
[1718288134679,0.00943801,67450.0,67449.0,0.61337993]
[1718288134881,0.00943801,67450.0,67449.0,1.10744315]
[1718288135091,0.00943801,67465.0,67464.0,0.148227]
[1718288135321,0.00943801,67465.0,67464.0,0.49514693]
[1718288135558,0.00943801,67465.0,67464.0,0.34691993]
[1718288135820,0.00943801,67465.0,67464.0,0.16731993]
[1718288135995,0.00943801,67465.0,67449.0,0.14599335]
[1718288135996,0.09434865,67461.0,67453.0,0.5847]
[1718288136262,0.00943801,67465.0,67454.0,0.60027972]
[1718288136436,0.00943801,67465.0,67454.0,0.16731993]
[1718288136635,0.00943801,67465.0,67464.0,0.013]
[1718288136852,0.00943801,67465.0,67464.0,0.023]
[1718288137259,0.00943801,67465.0,67464.0,0.14431993]
[1718288137467,0.01043801,67465.0,67464.0,0.16731993]
[1718288138222,0.01043801,67465.0,67464.0,0.31554693]
[1718288138714,0.01043801,67465.0,67464.0,0.50924693]
[1718288138855,0.00943801,67465.0,67464.0,0.50924693]
[1718288139040,0.00943801,67465.0,67464.0,0.52324693]
[1718288139249,0.01043801,67465.0,67464.0,0.74324693]
[1718288139662,0.00943801,67465.0,67464.0,0.71524693]
[1718288140076,0.01043801,67465.0,67464.0,0.72924693]
[1718288140280,0.01043801,67465.0,67464.0,0.37501993]
[1718288141015,0.01043801,67465.0,67464.0,1.02531223]
[1718288141445,0.01043801,67465.0,67464.0,1.04321582]
[1718288141655,0.01043801,67465.0,67464.0,1.12531223]
[1718288141866,0.01043801,67465.0,67464.0,0.84285823]
[1718288142072,0.01043801,67465.0,67464.0,0.88541819]
[1718288142288,0.01043801,67465.0,67464.0,0.82885823]
[1718288142689,0.01043801,67465.0,67464.0,0.84285823]
[1718288143619,0.01043801,67465.0,67464.0,1.13931223]
[1718288143848,0.01043801,67465.0,67464.0,1.4593963]
[1718288144235,0.01043801,67465.0,67464.0,1.47729271]
[1718288144440,0.01043801,67465.0,67464.0,1.4593963]
[1718288144647,1e-08,67465.0,67464.0,1.4593963]
[1718288144853,1e-08,67465.0,67464.0,1.50692177]
[1718288145427,1e-08,67465.0,67464.0,1.49292177]
[1718288145634,0.00943801,67480.0,67479.0,0.148194]
[1718288145828,0.00943801,67480.0,67479.0,0.34691993]
[1718288146078,0.00943801,67480.0,67479.0,0.16731993]
[1718288147512,0.10378666,67480.0,67479.0,0.17231993]
[1718288148286,0.10378666,67480.0,67479.0,0.028]
[1718288148508,0.41067866,67480.0,67479.0,0.005]
[1718288148924,0.41067866,67480.0,67479.0,0.016]
[1718288149222,0.41067866,67480.0,67479.0,0.011]
[1718288149633,0.09434865,67464.0,67462.0,0.4718]
[1718288149853,0.09434865,67465.0,67463.0,0.57727972]
[1718288150051,0.09434865,67465.0,67463.0,0.14431993]
[1718288150494,0.09434865,67465.0,67456.0,0.1927]
[1718288150495,0.09434865,67460.0,67456.0,0.0843]
[1718288150720,0.02,67462.0,67457.0,0.14431993]
[1718288150721,0.09434865,67461.0,67457.0,0.14431993]
[1718288151359,0.0887,67468.0,67457.0,0.14431993]
[1718288151360,0.09434865,67465.0,67457.0,0.14431993]
[1718288151756,0.09434865,67471.0,67460.0,0.148233]
[1718288151963,0.1053,67472.0,67462.0,0.16223]
[1718288151964,0.09434865,67467.0,67462.0,0.16223]
[1718288152219,0.02,67468.0,67463.0,0.14431993]
[1718288152220,0.09434865,67468.0,67463.0,0.14431993]
[1718288152451,0.09434865,67472.0,67465.0,0.148223]
[1718288152660,0.05,67475.0,67469.0,0.5]
[1718288152858,0.05,67475.0,67470.0,0.14729714]
[1718288152859,0.14434865,67475.0,67470.0,0.14729714]
[1718288152981,0.14434865,67475.0,67469.0,0.5]
[1718288153181,0.14434865,67475.0,67470.0,0.15024788]
[1718288153182,0.05,67475.0,67470.0,0.15024788]
[1718288153468,0.14434865,67475.0,67471.0,0.023]
[1718288153718,0.14434865,67475.0,67471.0,0.17324771]
[1718288154088,0.05,67475.0,67472.0,0.14431993]
[1718288154249,0.001,67475.0,67473.0,0.02892758]
[1718288154445,0.051,67475.0,67473.0,0.17324751]
[1718288154662,0.05,67475.0,67473.0,0.17324751]
[1718288155705,0.05,67475.0,67473.0,0.023]
[1718288155706,0.11434865,67474.0,67473.0,0.023]
[1718288156133,0.11434865,67471.0,67470.0,0.023]
[1718288156360,0.11434865,67471.0,67470.0,0.16731993]
[1718288156776,0.09434865,67471.0,67470.0,0.16731993]
[1718288156999,0.11434865,67471.0,67470.0,0.16731993]
[1718288157215,0.05,67475.0,67470.0,0.16731993]
[1718288157424,0.09434865,67477.0,67471.0,0.14431993]
[1718288157622,0.02,67478.0,67472.0,0.1144]
[1718288157623,0.09434865,67478.0,67472.0,0.1144]
[1718288157852,0.00943801,67480.0,67473.0,0.64431993]
[1718288158132,0.00943801,67480.0,67476.0,0.148199]
[1718288158343,0.00943801,67480.0,67477.0,0.16809831]
[1718288158559,0.09434865,67476.0,67474.0,0.023]
[1718288158995,0.09434865,67475.0,67474.0,0.023]
[1718288159202,0.09434865,67472.0,67471.0,0.023]
[1718288159417,0.09434865,67472.0,67470.0,0.016]
[1718288159418,0.31255965,67471.0,67470.0,0.016]
[1718288159626,0.43820861,67471.0,67470.0,0.003]
[1718288159830,0.68641961,67471.0,67470.0,0.003]
[1718288160202,0.05,67459.0,67451.0,0.023]
[1718288160409,0.05,67466.0,67455.0,0.43295979]
[1718288160640,0.2017,67471.0,67451.0,0.023]
[1718288160641,0.21650861,67463.0,67456.0,0.14431993]
[1718288160823,0.21650861,67463.0,67449.0,0.51785197]
[1718288160824,0.09434865,67458.0,67449.0,0.51785197]
[1718288161041,0.09434865,67458.0,67450.0,0.14431993]
[1718288161262,0.09434865,67460.0,67450.0,0.14431993]
[1718288161464,0.09434865,67456.0,67450.0,0.14431993]
[1718288161884,0.09434865,67457.0,67450.0,0.14431993]
[1718288162085,0.11434865,67457.0,67456.0,0.013]
[1718288162526,0.09434865,67457.0,67456.0,0.013]
[1718288162730,0.11434865,67457.0,67456.0,0.013]
[1718288162936,0.09434865,67457.0,67456.0,0.013]
[1718288163568,0.09434865,67457.0,67456.0,0.027]
[1718288163965,0.09434865,67457.0,67449.0,0.01785197]
[1718288163966,0.11434865,67451.0,67449.0,0.01785197]
[1718288164173,0.09434865,67446.0,67441.0,0.2]
[1718288164368,0.09434865,67444.0,67442.0,0.14431993]
[1718288164613,0.27040696,67455.0,67442.0,0.14431993]
[1718288164614,0.09434865,67447.0,67442.0,0.14431993]
[1718288164817,0.09434865,67451.0,67442.0,0.14431993]
[1718288165546,0.09434865,67447.0,67443.0,0.023]
[1718288165761,0.09434865,67446.0,67444.0,0.14431993]
[1718288165975,0.09434865,67446.0,67445.0,0.023]
[1718288166205,0.11434865,67446.0,67445.0,0.023]
[1718288166639,0.09434865,67448.0,67445.0,0.023]
[1718288166853,0.09434865,67447.0,67445.0,0.023]
[1718288167062,0.02,67448.0,67445.0,0.023]
[1718288167063,0.09434865,67448.0,67445.0,0.023]
[1718288167504,0.11434865,67446.0,67445.0,0.023]
[1718288167713,0.09434865,67447.0,67445.0,0.023]
[1718288167945,0.11434865,67446.0,67445.0,0.023]
[1718288168384,0.091,67448.0,67442.0,0.00086]
[1718288168385,0.16434865,67443.0,67442.0,0.00086]
[1718288168596,0.31262165,67443.0,67442.0,0.01286]
[1718288168841,0.16434865,67443.0,67442.0,0.01286]
[1718288169705,0.16434865,67443.0,67442.0,0.00086]
[1718288170133,0.16534865,67443.0,67442.0,0.00086]
[1718288170756,0.001,67443.0,67442.0,0.14517993]
[1718288170958,0.001,67443.0,67442.0,0.16817993]
[1718288171614,0.001,67443.0,67442.0,0.00086]
[1718288171615,0.11534865,67443.0,67442.0,0.00086]
[1718288172219,0.09434865,67443.0,67442.0,0.00086]
[1718288172635,0.09434865,67443.0,67442.0,0.00486]
[1718288172988,0.003,67443.0,67442.0,0.00486]
[1718288173197,0.05,67447.0,67442.0,0.02786]
[1718288173394,0.05,67447.0,67443.0,0.023]
[1718288173917,0.09434865,67446.0,67443.0,0.023]
[1718288174326,0.355347,67455.0,67443.0,0.16731993]
[1718288174327,0.05,67450.0,67443.0,0.16731993]
[1718288174541,0.05,67450.0,67443.0,0.17325032]
[1718288174757,0.05,67450.0,67443.0,0.32152332]
[1718288174957,0.05,67450.0,67444.0,0.14431993]
[1718288175225,0.05,67463.0,67447.0,0.5]
[1718288175437,0.2005,67470.0,67445.0,0.1866]
[1718288175438,0.05,67467.0,67454.0,0.5]
[1718288175662,0.05,67467.0,67455.0,0.23860593]
[1718288175880,0.05,67467.0,67456.0,0.023]
[1718288176089,0.09434865,67461.0,67457.0,0.14431993]
[1718288176345,0.09434865,67460.0,67458.0,0.023]
[1718288176549,0.09434865,67461.0,67456.0,0.16731993]
[1718288176749,0.09434865,67464.0,67456.0,0.16731993]
[1718288176956,0.052,67467.0,67457.0,0.15024882]
[1718288176957,0.002,67467.0,67457.0,0.15024882]
[1718288177156,0.002,67467.0,67458.0,0.2249]
[1718288177372,0.05,67474.0,67459.0,0.15024824]
[1718288177588,0.05,67470.0,67460.0,0.023]
[1718288177790,0.05,67470.0,67462.0,0.43295979]
[1718288178014,0.09529465,67475.0,67474.0,0.148205]
[1718288178015,0.000946,67475.0,67474.0,0.148205]
[1718288178227,0.000946,67475.0,67474.0,0.69702493]
[1718288178653,0.000946,67475.0,67474.0,0.54881993]
[1718288178861,0.000946,67475.0,67474.0,0.36921993]
[1718288180387,0.000946,67475.0,67474.0,0.38321993]
[1718288180623,0.11529465,67475.0,67474.0,0.18131993]
[1718288180841,0.09434865,67468.0,67462.0,0.1067]
[1718288181056,0.09434865,67468.0,67463.0,0.14431993]
[1718288181424,0.07310596,67475.0,67474.0,0.255705]
[1718288181425,0.000946,67475.0,67474.0,0.255705]
[1718288181625,0.000946,67475.0,67474.0,0.57962493]
[1718288181802,0.000946,67475.0,67474.0,0.68267741]
[1718288182236,0.000946,67475.0,67474.0,1.18508741]
[1718288182440,0.000946,67475.0,67474.0,1.20808741]
[1718288182641,0.000946,67475.0,67474.0,1.30808741]
[1718288182843,0.000946,67475.0,67474.0,1.32008741]
[1718288183042,0.000946,67475.0,67474.0,1.61014876]
[1718288183226,0.000946,67475.0,67474.0,1.30808741]
[1718288183423,0.000946,67475.0,67474.0,1.33608741]
[1718288183751,0.000946,67475.0,67474.0,1.34173876]
[1718288184149,0.000946,67475.0,67474.0,1.32773876]
[1718288184381,0.000946,67475.0,67474.0,1.86532872]
[1718288184577,0.000946,67475.0,67474.0,1.87932872]
[1718288184775,0.000946,67475.0,67474.0,1.80716876]
[1718288184980,0.000946,67475.0,67474.0,1.85146876]
[1718288185180,0.00943801,67480.0,67479.0,0.850582]
[1718288185382,0.00943801,67480.0,67479.0,0.83976641]
[1718288185584,0.00943801,67480.0,67479.0,0.82151393]
[1718288185946,0.00943801,67480.0,67479.0,0.77151393]
[1718288186155,0.00943801,67480.0,67479.0,0.42331993]
[1718288186599,0.00943801,67480.0,67479.0,0.43731993]
[1718288187037,0.00943801,67480.0,67479.0,0.45131993]
[1718288187237,0.00943801,67480.0,67479.0,0.50131993]
[1718288187442,0.00943801,67480.0,67479.0,0.63551393]
[1718288187617,0.00943801,67480.0,67479.0,0.62151393]
[1718288187837,0.00943801,67480.0,67479.0,0.63551393]
[1718288188638,0.00943801,67480.0,67479.0,0.48731993]
[1718288188847,0.00943801,67480.0,67479.0,0.15831993]
[1718288189077,0.12378666,67480.0,67479.0,0.15831993]
[1718288189274,0.12378666,67480.0,67479.0,0.17231993]
[1718288189724,0.12378666,67480.0,67479.0,0.15831993]
[1718288189985,0.00943801,67480.0,67479.0,0.15831993]
[1718288190169,0.00943801,67480.0,67479.0,0.17131993]
[1718288190587,0.12378666,67480.0,67479.0,0.19431993]
[1718288190899,0.32758666,67480.0,67479.0,0.027]
[1718288191100,0.37758666,67480.0,67479.0,0.027]
[1718288191305,0.52577866,67480.0,67479.0,0.027]
[1718288191490,0.53577866,67480.0,67479.0,0.027]
[1718288191694,0.52577866,67480.0,67479.0,0.027]
[1718288191934,0.58935653,67480.0,67479.0,0.027]
[1718288192149,0.78009859,67480.0,67479.0,0.027]
[1718288192358,1.07648259,67480.0,67479.0,0.027]
[1718288192746,0.77009859,67480.0,67479.0,0.027]
[1718288192873,0.48758666,67480.0,67479.0,0.027]
[1718288193075,0.01,67464.0,67456.0,0.4718]
[1718288193277,0.11434865,67464.0,67463.0,0.43295979]
[1718288193482,0.11434865,67464.0,67463.0,0.16731993]
[1718288193680,0.05,67467.0,67463.0,0.16731993]
[1718288193892,0.05,67467.0,67464.0,0.16731993]
[1718288194090,0.14434865,67467.0,67464.0,0.16731993]
[1718288194343,0.09434865,67465.0,67464.0,0.16731993]
[1718288194550,0.11434865,67465.0,67464.0,0.023]
[1718288194904,0.09434865,67463.0,67457.0,0.00592878]
[1718288195104,0.05,67467.0,67458.0,0.16731993]
[1718288195105,0.09434865,67461.0,67458.0,0.16731993]
[1718288195315,0.09434865,67462.0,67458.0,0.16731993]
[1718288195591,0.09434865,67460.0,67459.0,0.005929]
[1718288195910,0.05,67467.0,67459.0,0.005929]
[1718288195911,0.14434865,67467.0,67459.0,0.14431993]
[1718288196108,0.14434865,67467.0,67460.0,0.14882166]
[1718288196272,0.14434865,67467.0,67461.0,0.023]
[1718288196482,0.14434865,67467.0,67462.0,0.14882152]
[1718288196636,0.09434865,67467.0,67463.0,0.023]
[1718288196839,0.14534865,67467.0,67464.0,0.007]
[1718288197090,0.14434865,67467.0,67465.0,0.023]
[1718288197297,0.11434865,67466.0,67465.0,0.023]
[1718288197467,0.09434865,67464.0,67463.0,0.023]
[1718288197672,0.09434865,67466.0,67463.0,0.023]
[1718288197949,0.14434865,67467.0,67463.0,0.023]
[1718288198238,0.14534865,67467.0,67463.0,0.16947517]
[1718288198457,0.051,67467.0,67463.0,0.16947517]
[1718288198659,0.001,67467.0,67465.0,0.005]
[1718288198861,0.001,67467.0,67466.0,0.16731993]
[1718288199751,0.05,67468.0,67466.0,0.16731993]
[1718288200173,0.09434865,67467.0,67466.0,0.16731993]
[1718288200343,0.05,67468.0,67466.0,0.16731993]
[1718288200761,0.001,67467.0,67466.0,0.16731993]
[1718288201153,0.001,67467.0,67466.0,0.25251993]
[1718288201310,0.001,67467.0,67466.0,0.25651993]
[1718288201855,0.001,67467.0,67466.0,0.25251993]
[1718288202364,0.09434865,67467.0,67466.0,0.16731993]
[1718288202535,0.05,67468.0,67466.0,0.16731993]
[1718288203571,0.09434865,67474.0,67466.0,0.17131993]
[1718288203741,0.001,67468.0,67467.0,0.14822]
[1718288203951,0.001,67468.0,67467.0,0.31553993]
[1718288204258,0.09434865,67473.0,67467.0,0.31553993]
[1718288204456,0.09434865,67473.0,67468.0,0.16731993]
[1718288204663,0.000946,67475.0,67474.0,0.5]
[1718288204905,0.000946,67475.0,67474.0,0.66731993]
[1718288205518,0.11529465,67475.0,67474.0,0.16731993]
[1718288206043,0.11434865,67468.0,67467.0,0.009]
[1718288206244,0.11434865,67468.0,67467.0,0.15331993]
[1718288206507,0.11434865,67468.0,67467.0,0.17631993]
[1718288206866,0.16434865,67468.0,67465.0,0.00086]
[1718288207073,0.000946,67475.0,67465.0,0.00086]
[1718288207074,0.36294865,67466.0,67465.0,0.00086]
[1718288207290,0.56632075,67466.0,67465.0,0.00086]
[1718288207493,0.84552075,67466.0,67465.0,0.00086]
[1718288207713,0.50809875,67466.0,67465.0,0.00086]
[1718288207909,0.46294865,67466.0,67465.0,0.00086]
[1718288208327,0.46294865,67466.0,67465.0,0.01186]
[1718288208942,0.46294865,67466.0,67465.0,0.01286]
[1718288209149,0.46294865,67466.0,67465.0,0.01186]
[1718288209390,0.36294865,67466.0,67465.0,0.01186]
[1718288209641,0.36294865,67466.0,67465.0,0.01286]
[1718288210016,0.36294865,67466.0,67465.0,0.00186]
[1718288210423,0.34294865,67466.0,67465.0,0.00186]
[1718288210629,0.14434865,67466.0,67465.0,0.00186]
[1718288210862,0.05,67466.0,67465.0,0.00186]
[1718288211254,0.14434865,67466.0,67465.0,0.00086]
[1718288211391,0.14434865,67466.0,67465.0,0.00186]
[1718288211857,0.05,67466.0,67465.0,0.00086]
[1718288212105,0.14434865,67466.0,67465.0,0.00086]
[1718288212329,0.16434865,67466.0,67465.0,0.00286]
[1718288213463,0.32257065,67466.0,67465.0,0.00286]
[1718288213608,0.16434865,67466.0,67465.0,0.00286]
[1718288214051,0.14434865,67466.0,67465.0,0.00286]
[1718288214242,0.16434865,67466.0,67465.0,0.00286]
[1718288214420,0.14434865,67466.0,67465.0,0.00286]
[1718288214789,0.02,67467.0,67465.0,0.00286]
[1718288214790,0.05,67467.0,67465.0,0.00286]
[1718288215065,0.05,67466.0,67465.0,0.00286]
[1718288216382,0.05,67469.0,67465.0,0.00286]
[1718288216563,0.05,67470.0,67465.0,0.00986]
[1718288216767,0.05,67469.0,67466.0,0.023]
[1718288217108,0.05,67470.0,67466.0,0.023]
[1718288217311,0.05,67467.0,67466.0,0.021]
[1718288218098,0.05,67467.0,67466.0,0.11337966]
[1718288218414,0.05,67472.0,67466.0,0.12637966]
[1718288218594,0.05,67472.0,67467.0,0.09237966]
[1718288218799,0.14434865,67474.0,67466.0,0.034]
[1718288219041,0.14434865,67474.0,67467.0,0.0922169]
[1718288219242,0.05,67470.0,67467.0,0.0922169]
[1718288219421,0.14434865,67471.0,67467.0,0.0922169]
[1718288220254,0.16434865,67468.0,67466.0,0.027]
[1718288220433,0.05,67467.0,67466.0,0.027]
[1718288220628,0.14434865,67467.0,67466.0,0.04]
[1718288221257,0.16434865,67467.0,67466.0,0.006]
[1718288221464,0.16434865,67467.0,67466.0,0.09193334]
[1718288221693,0.16434865,67467.0,67466.0,0.013]
[1718288221694,0.05,67467.0,67466.0,0.013]
[1718288222059,0.14434865,67467.0,67466.0,0.013]
[1718288222252,0.16434865,67467.0,67466.0,0.013]
[1718288222449,0.16434865,67467.0,67466.0,0.10523742]
[1718288222652,0.05,67467.0,67466.0,0.09823742]
[1718288222888,0.16434865,67467.0,67466.0,0.12123742]
[1718288223281,0.05,67467.0,67466.0,0.11623742]
[1718288224117,0.16434865,67467.0,67466.0,0.11623742]
[1718288224304,0.05,67467.0,67466.0,0.12923742]
[1718288224507,0.05,67474.0,67466.0,0.85775735]
[1718288224705,0.05,67472.0,67470.0,0.148212]
[1718288224948,0.05,67472.0,67471.0,0.09223742]
[1718288225149,0.05,67472.0,67471.0,0.023]
[1718288225314,0.000946,67475.0,67472.0,0.148207]
[1718288225530,0.000946,67475.0,67473.0,0.023]
[1718288225834,0.00076763,67475.0,67474.0,0.81701868]
[1718288226004,0.00076763,67475.0,67474.0,0.9092561]
[1718288226205,0.00076763,67475.0,67474.0,0.9322561]
[1718288226645,0.00076763,67475.0,67474.0,1.2227588]
[1718288227017,0.00076763,67475.0,67474.0,1.1340488]
[1718288227427,0.00076763,67475.0,67474.0,1.4304588]
[1718288227633,0.00076763,67475.0,67474.0,1.1340488]
[1718288228739,0.00076763,67475.0,67474.0,1.1480488]
[1718288228884,0.00076763,67475.0,67474.0,1.1510488]
[1718288229290,0.00076763,67475.0,67474.0,1.1480488]
[1718288229887,0.00076763,67475.0,67474.0,1.1620488]
[1718288230725,0.00076763,67475.0,67474.0,1.4584588]
[1718288230938,0.00076763,67475.0,67474.0,1.1620488]
[1718288232067,0.00076763,67475.0,67474.0,0.3061438]
[1718288232515,0.00076763,67475.0,67474.0,0.43576235]
[1718288232828,0.11511628,67475.0,67474.0,0.28755735]
[1718288232948,0.11511628,67475.0,67474.0,0.12023742]
[1718288233149,0.16511628,67475.0,67474.0,0.028]
[1718288233359,0.28151628,67475.0,67474.0,0.028]
[1718288233568,0.37371628,67475.0,67474.0,0.028]
[1718288234195,0.36371628,67475.0,67474.0,0.028]
[1718288234829,0.36371628,67475.0,67474.0,0.014]
[1718288235246,0.36371628,67475.0,67474.0,0.028]
[1718288235958,0.36371628,67475.0,67474.0,0.014]
[1718288236154,0.11434865,67466.0,67465.0,0.00086]
[1718288237796,0.39038352,67466.0,67465.0,0.00086]
[1718288238245,0.53860552,67466.0,67465.0,0.00086]
[1718288238927,0.38038352,67466.0,67465.0,0.00086]
[1718288239172,0.37294865,67466.0,67465.0,0.01386]
[1718288239392,0.52117065,67466.0,67465.0,0.01386]
[1718288239604,0.52217065,67466.0,67465.0,0.01986]
[1718288240005,0.52117065,67466.0,67465.0,0.00086]
[1718288240391,0.51317065,67466.0,67465.0,0.00586]
[1718288240552,0.37494865,67466.0,67465.0,0.00586]
[1718288240751,0.52317065,67466.0,67465.0,0.00586]
[1718288241190,0.57548771,67466.0,67465.0,0.00586]
[1718288241362,0.56548771,67466.0,67465.0,0.00586]
[1718288241567,0.42726571,67466.0,67465.0,0.00586]
[1718288242202,0.14634865,67466.0,67465.0,0.00586]
[1718288242564,0.052,67466.0,67465.0,0.00586]
[1718288243295,0.002,67466.0,67465.0,0.15017993]
[1718288243496,0.002,67466.0,67465.0,0.26965968]
[1718288243711,0.002,67466.0,67465.0,0.62348468]
[1718288243915,0.002,67466.0,67465.0,1.54117852]
[1718288244135,0.002,67466.0,67465.0,1.54682987]
[1718288244361,0.00076763,67475.0,67465.0,1.54682987]
[1718288244362,0.00076763,67475.0,67474.0,1.555415]
[1718288244563,0.00076763,67475.0,67474.0,2.29834493]
[1718288244762,0.00076763,67475.0,67474.0,2.00193493]
[1718288245147,0.00076763,67475.0,67474.0,2.04663493]
[1718288245477,0.00076763,67475.0,67474.0,2.4450541]
[1718288245678,0.00076763,67475.0,67474.0,2.46383632]
[1718288246110,0.00076763,67475.0,67474.0,2.49346632]
[1718288246310,0.00943801,67480.0,67479.0,0.65623335]
[1718288246516,0.00943801,67480.0,67479.0,1.11995328]
[1718288246769,0.00943801,67480.0,67479.0,1.21065774]
[1718288246975,0.00943801,67480.0,67479.0,0.93304904]
[1718288247187,0.00943801,67480.0,67479.0,1.45898839]
[1718288247361,0.00943801,67480.0,67479.0,1.75520455]
[1718288248179,0.5,67500.0,67499.0,0.7]
[1718288248388,0.5,67500.0,67499.0,1.99276993]
[1718288248597,0.5,67500.0,67499.0,1.73351532]
[1718288248816,0.5,67500.0,67499.0,1.50961532]
[1718288249060,0.5,67500.0,67499.0,0.76731993]
[1718288249491,0.5,67500.0,67499.0,1.87849432]
[1718288249697,0.5,67500.0,67499.0,1.91625122]
[1718288249902,0.5,67500.0,67499.0,1.9490062]
[1718288250329,0.5,67500.0,67499.0,1.41537804]
[1718288250538,0.5,67500.0,67499.0,0.26731993]
[1718288250752,0.501,67500.0,67499.0,0.42946993]
[1718288250962,0.501,67500.0,67499.0,0.46082119]
[1718288251167,0.5,67500.0,67499.0,0.48381742]
[1718288251381,0.5,67500.0,67499.0,0.82994558]
[1718288251532,0.501,67500.0,67499.0,0.99994558]
[1718288251942,0.501,67500.0,67499.0,0.70364558]
[1718288252371,0.501,67500.0,67499.0,0.74074151]
[1718288252588,0.501,67500.0,67499.0,1.4569007]
[1718288252818,0.501,67500.0,67499.0,1.53200314]
[1718288252819,0.45643058,67500.0,67499.0,1.53200314]
[1718288253032,0.05,67545.0,67517.0,1.01677951]
[1718288253253,0.0874,67554.0,67532.0,0.148077]
[1718288253254,0.05,67539.0,67532.0,0.148077]
[1718288253465,0.05,67539.0,67532.0,0.14431993]
[1718288253677,0.09434865,67534.0,67532.0,0.16731993]
[1718288253868,0.10376465,67533.0,67532.0,0.16731993]
[1718288254086,0.09434865,67528.0,67520.0,0.2]
[1718288254287,0.09434865,67529.0,67521.0,0.16731993]
[1718288254489,0.009416,67533.0,67521.0,0.16731993]
[1718288254699,0.009416,67533.0,67527.0,0.7]
[1718288254921,0.009416,67533.0,67528.0,0.16731993]
[1718288255127,0.010416,67533.0,67532.0,0.012]
[1718288256215,0.10476465,67533.0,67532.0,0.012]
[1718288256655,0.10376465,67533.0,67528.0,0.16731993]
[1718288256853,0.009416,67533.0,67528.0,0.16731993]
[1718288257076,0.09434865,67530.0,67528.0,0.16731993]
[1718288257206,0.10376465,67533.0,67528.0,0.16731993]
[1718288257403,0.09434865,67529.0,67528.0,0.16731993]
[1718288257831,0.10376465,67533.0,67528.0,0.16731993]
[1718288258200,0.009416,67533.0,67528.0,0.16731993]
[1718288258409,0.009416,67533.0,67528.0,0.17531993]
[1718288258562,0.009416,67533.0,67529.0,0.00296332]
[1718288258757,0.009416,67533.0,67530.0,0.16731993]
[1718288258962,0.009416,67533.0,67531.0,0.00296511]
[1718288259167,0.009416,67533.0,67532.0,0.81539693]
[1718288259414,0.009416,67533.0,67532.0,0.94129693]
[1718288260063,0.009416,67533.0,67532.0,0.90092229]
[1718288260924,0.009416,67533.0,67532.0,0.92892229]
[1718288261571,0.009416,67533.0,67532.0,0.78084529]
[1718288261776,0.009416,67533.0,67532.0,0.28084529]
[1718288262020,0.009416,67533.0,67532.0,0.42892229]
[1718288262217,0.009416,67533.0,67532.0,0.47875045]
[1718288262748,0.009416,67533.0,67532.0,0.63475045]
[1718288263181,0.009416,67533.0,67532.0,0.28084529]
[1718288263964,0.009416,67533.0,67532.0,0.63475045]
[1718288264578,0.009416,67533.0,67532.0,0.64885045]
[1718288264825,0.009416,67533.0,67532.0,0.74885045]
[1718288265604,0.009416,67533.0,67532.0,0.70524323]
[1718288266406,0.009416,67533.0,67532.0,0.74641875]
[1718288267147,0.009416,67533.0,67532.0,0.69659059]
[1718288267359,0.009416,67533.0,67532.0,0.33723807]
[1718288267961,0.009416,67533.0,67532.0,0.29531993]
[1718288268986,0.009416,67533.0,67532.0,0.44339693]
[1718288270008,0.009416,67533.0,67532.0,0.29531993]
[1718288270380,0.12376465,67533.0,67532.0,0.23723807]
[1718288270578,0.12376465,67533.0,67532.0,0.19531993]
[1718288270579,0.32296465,67533.0,67532.0,0.19531993]
[1718288270892,0.32296465,67533.0,67532.0,0.028]
[1718288274735,0.37313649,67533.0,67532.0,0.028]
[1718288274963,0.52121149,67533.0,67532.0,0.028]
[1718288275161,0.32313649,67533.0,67532.0,0.028]
[1718288275362,0.37313649,67533.0,67532.0,0.028]
[1718288275796,0.37313649,67533.0,67532.0,0.014]
[1718288276178,0.37413649,67533.0,67532.0,0.014]
[1718288276381,0.52221149,67533.0,67532.0,0.014]
[1718288276558,0.53221149,67533.0,67532.0,0.014]
[1718288277600,0.53221149,67533.0,67518.0,0.20086]
[1718288277601,0.01,67519.0,67518.0,0.20086]
[1718288277797,0.11434865,67519.0,67518.0,0.20086]
[1718288278882,0.20904865,67519.0,67518.0,0.20086]
[1718288279093,0.20904865,67519.0,67518.0,0.21486]